bitfinex/quotes_ETHUSD_20230119
["timestamp","ask_amount","ask_price","bid_price","bid_amount"]
[1674127557506,8.45020181,1519.5,1519.2,38.46463787]
[1674127564838,8.45020181,1519.5,1519.2,36.90863787]
[1674127566557,0.08030181,1519.5,1519.2,36.90863787]
[1674127566733,0.01631569,1519.5,1519.2,36.90863787]
[1674127569037,0.01631569,1519.5,1519.2,36.65803932]
[1674127569250,0.01631569,1519.5,1519.2,33.18216315]
[1674127569458,0.01631569,1519.5,1519.2,32.68738759]
[1674127571927,0.01631569,1519.5,1519.2,33.18216315]
[1674127572784,0.01631569,1519.5,1519.2,34.95616315]
[1674127574253,3e-07,1519.3,1519.2,34.95616315]
[1674127574558,3e-07,1519.3,1519.2,38.45366413]
[1674127574771,3e-07,1519.3,1519.2,38.77143115]
[1674127575084,3e-07,1519.3,1519.2,40.98553097]
[1674127576929,3e-07,1519.3,1519.2,48.52753097]
[1674127577409,3e-07,1519.3,1519.2,47.36765559]
[1674127577589,3e-07,1519.3,1519.2,48.52758554]
[1674127580175,3e-07,1519.3,1519.2,59.64576681]
[1674127580382,3e-07,1519.3,1519.2,56.14576681]
[1674127581073,3e-07,1519.3,1519.2,55.45658554]
[1674127581863,3e-07,1519.3,1519.2,56.14576681]
[1674127584501,3e-07,1519.3,1519.2,48.29758554]
[1674127584717,3e-07,1519.3,1519.2,44.53943115]
[1674127585142,3e-07,1519.3,1519.2,45.20491204]
[1674127585890,3e-07,1519.3,1519.2,45.43491204]
[1674127586236,3e-07,1519.3,1519.2,44.76943115]
[1674127586629,3e-07,1519.3,1519.2,45.43494919]
[1674127586795,3e-07,1519.3,1519.2,44.76943115]
[1674127587006,3e-07,1519.3,1519.2,45.43510591]
[1674127587627,3e-07,1519.3,1519.2,56.16728718]
[1674127588266,3e-07,1519.3,1519.2,57.20216141]
[1674127588788,5.69e-06,1519.5,1519.4,1.0]
[1674127589003,0.0118333,1519.6,1519.4,32.81018524]
[1674127589271,0.0118333,1519.6,1519.5,6.52174759]
[1674127589579,0.0118333,1519.6,1519.5,19.75307373]
[1674127589742,0.0118333,1519.6,1519.5,24.51154728]
[1674127590787,0.0118333,1519.6,1519.5,24.82975407]
[1674127591631,0.0118333,1519.6,1519.5,24.51154728]
[1674127594903,0.05112389,1519.7,1519.5,29.28739361]
[1674127595109,0.05112389,1519.7,1519.6,5.16684793]
[1674127595323,0.03126463,1519.8,1519.6,25.24182687]
[1674127595568,0.03126463,1519.8,1519.7,19.33238044]
[1674127595802,0.03126463,1519.8,1519.7,20.78900241]
[1674127596017,0.03126463,1519.8,1519.7,24.47790199]
[1674127596362,0.0118333,1519.9,1519.8,14.15962]
[1674127596541,0.0118333,1519.9,1519.8,27.59436454]
[1674127596751,0.0118333,1519.9,1519.8,26.61041779]
[1674127598578,0.0118333,1519.9,1519.8,24.05641779]
[1674127602410,0.0118333,1519.9,1519.8,20.24214315]
[1674127605346,0.9858333,1519.9,1519.8,20.24214315]
[1674127605541,0.9858333,1519.9,1519.8,19.74736759]
[1674127605916,0.9858333,1519.9,1519.8,19.51736759]
[1674127607010,0.0118333,1519.9,1519.8,19.51736759]
[1674127607288,0.9858333,1519.9,1519.8,19.51736759]
[1674127607486,0.0118333,1519.9,1519.8,19.51736759]
[1674127610478,0.0118333,1519.9,1519.8,20.01214315]
[1674127610727,0.0118333,1519.9,1519.8,23.55940546]
[1674127612708,0.9858333,1519.9,1519.8,20.01214315]
[1674127613481,0.0118333,1519.9,1519.8,20.01214315]
[1674127616576,0.9858333,1519.9,1519.8,20.01214315]
[1674127616787,2.5388333,1519.9,1519.8,20.01214315]
[1674127617837,2.84964857,1519.9,1519.8,16.72039556]
[1674127618048,2.84964857,1519.9,1519.8,0.066]
[1674127618405,2.84964857,1519.9,1519.6,6.64643]
[1674127618406,4.39164857,1519.9,1519.6,6.64643]
[1674127618573,1.553,1519.7,1519.6,6.64643]
[1674127618787,1.553,1519.7,1519.6,0.066]
[1674127619115,1.553,1519.7,1519.5,6.64696]
[1674127619332,1.55474342,1519.6,1519.5,6.64696]
[1674127620419,1.55474342,1519.6,1519.5,6.64496]
[1674127620625,1.55474342,1519.6,1519.5,6.64696]
[1674127620787,1.55474342,1519.6,1519.5,9.64696]
[1674127622206,1.55474342,1519.6,1519.5,16.22807]
[1674127622994,1.549,1519.7,1519.5,19.51981759]
[1674127626882,1.549,1519.7,1519.5,16.22807]
[1674127628690,10.26132705,1519.8,1519.5,16.22807]
[1674127628934,0.39940657,1519.6,1519.5,16.22807]
[1674127629244,0.39940657,1519.6,1519.5,19.51981759]
[1674127632220,0.39940657,1519.6,1519.5,19.74981759]
[1674127633133,0.39940657,1519.6,1519.5,20.07081881]
[1674127633382,0.39940657,1519.6,1519.5,25.10187471]
[1674127635339,10.58721942,1519.9,1519.7,13.16048]
[1674127635596,0.07581942,1519.9,1519.8,6.29174759]
[1674127635782,0.07581942,1519.9,1519.8,19.51736759]
[1674127635783,0.0118333,1519.9,1519.8,19.51736759]
[1674127635976,0.0118333,1519.9,1519.8,23.60039235]
[1674127640930,0.9858333,1519.9,1519.8,19.51736759]
[1674127641348,0.0118333,1519.9,1519.8,19.51736759]
[1674127645224,2.5338333,1519.9,1519.8,9.64581]
[1674127645471,2.78839996,1519.9,1519.8,9.64581]
[1674127645640,2.78839996,1519.9,1519.8,6.64581]
[1674127647261,2.78839996,1519.9,1519.8,0.066]
[1674127647437,3.28199996,1519.9,1519.6,16.2268]
[1674127647658,1.557,1519.8,1519.7,6.58022]
[1674127647865,1.557,1519.8,1519.7,6.64622]
[1674127648536,1.8861,1519.8,1519.7,6.64622]
[1674127648745,3.44714093,1519.8,1519.7,0.066]
[1674127648897,3.44714093,1519.8,1519.5,6.64704]
[1674127649107,1.542,1519.7,1519.5,6.64704]
[1674127649475,1.88521409,1519.7,1519.5,6.64704]
[1674127651429,1.95412705,1519.8,1519.5,13.22815]
[1674127651646,1.89014093,1519.8,1519.5,13.22815]
[1674127655543,1.89014093,1519.8,1519.5,6.64704]
[1674127656988,1.89014093,1519.8,1519.5,0.066]
[1674127656989,1.541,1519.7,1519.5,0.066]
[1674127657195,1.95252976,1519.7,1519.4,13.23127873]
[1674127658941,0.41152976,1519.7,1519.4,13.23127873]
[1674127660935,1.89014093,1519.8,1519.4,13.23127873]
[1674127661091,1.89214093,1519.8,1519.4,13.22927873]
[1674127661304,1.89014093,1519.8,1519.4,13.23127873]
[1674127662199,1.89014093,1519.8,1519.4,13.22845]
[1674127662412,0.18901409,1519.7,1519.4,13.22845]
[1674127662775,0.18901409,1519.7,1519.4,6.64721]
[1674127663217,1.74601409,1519.7,1519.4,6.64721]
[1674127663453,2.23961409,1519.7,1519.4,6.64721]
[1674127663774,1.546,1519.6,1519.4,6.64626426]
[1674127663991,1.76996141,1519.6,1519.4,6.64626426]
[1674127664666,1.542,1519.5,1519.4,0.06505426]
[1674127665000,1.542,1519.5,1519.1,0.06505426]
[1674127665001,10.17381,1519.5,1519.1,0.06505426]
[1674127665193,0.1542,1519.4,1519.0,6.77710228]
[1674127666062,0.1542,1519.4,1519.0,13.36015228]
[1674127667340,0.1542,1519.4,1519.1,6.58277]
[1674127667559,0.1542,1519.4,1519.1,6.64782426]
[1674127667948,0.15824093,1519.4,1519.1,6.64782426]
[1674127668569,0.15824093,1519.4,1519.1,0.06505426]
[1674127668777,1.70024093,1519.4,1519.0,13.36015228]
[1674127668988,0.17002409,1519.3,1519.0,13.36015228]
[1674127669327,0.17002409,1519.3,1519.0,0.19426228]
[1674127669328,1.56104093,1519.2,1519.0,0.19426228]
[1674127669672,1.56104093,1519.2,1519.0,0.12920802]
[1674127671224,1.557,1519.1,1519.0,0.12920802]
[1674127671438,16.27968,1519.1,1519.0,0.12920802]
[1674127671610,25.38016612,1519.1,1519.0,0.12920802]
[1674127674167,23.82316612,1519.1,1519.0,0.12920802]
[1674127675319,23.82316612,1519.1,1518.7,0.12920802]
[1674127675320,35.58521727,1519.1,1518.7,0.12920802]
[1674127675548,1.541,1518.8,1518.7,0.12920802]
[1674127675726,15.20318,1518.8,1518.7,0.12920802]
[1674127676061,16.26716612,1518.8,1518.7,0.12920802]
[1674127676251,19.55891371,1518.8,1518.7,0.12920802]
[1674127676461,19.78891371,1518.8,1518.7,0.12920802]
[1674127676703,19.55891371,1518.8,1518.7,0.12920802]
[1674127676877,27.95831371,1518.8,1518.7,0.12920802]
[1674127677343,29.51531371,1518.8,1518.7,0.12920802]
[1674127679218,29.51935464,1518.8,1518.7,0.12920802]
[1674127680597,27.97835464,1518.8,1518.7,0.12920802]
[1674127680810,26.97835464,1518.8,1518.7,0.12920802]
[1674127680960,10.02442705,1518.8,1518.7,0.12920802]
[1674127681176,8.46742705,1518.8,1518.7,0.12920802]
[1674127681908,1.04202705,1518.8,1518.7,0.12920802]
[1674127682137,0.97804093,1518.8,1518.7,0.12920802]
[1674127683122,1.07584502,1518.8,1518.7,0.12920802]
[1674127683559,2.63284502,1518.8,1518.7,0.12920802]
[1674127683928,3.63284502,1518.8,1518.7,0.12920802]
[1674127684274,2.63284502,1518.8,1518.7,0.12920802]
[1674127684694,3.63284502,1518.8,1518.7,0.12920802]
[1674127684911,10.21698502,1518.8,1518.7,0.12920802]
[1674127685094,10.28097114,1518.8,1518.7,0.12920802]
[1674127685306,16.86511114,1518.8,1518.7,0.12920802]
[1674127685561,20.65075873,1518.8,1518.7,0.12920802]
[1674127685870,20.15685873,1518.8,1518.7,0.12920802]
[1674127688982,20.65075873,1518.8,1518.7,0.12920802]
[1674127689407,23.65075873,1518.8,1518.7,0.12920802]
[1674127689625,23.88075873,1518.8,1518.7,0.12920802]
[1674127690049,23.90075873,1518.8,1518.7,0.12920802]
[1674127691180,1.15983114,1518.8,1518.7,0.12920802]
[1674127691535,0.994,1518.8,1518.7,0.12920802]
[1674127692182,7.57814,1518.8,1518.7,0.12920802]
[1674127692399,7.64212612,1518.8,1518.7,0.12920802]
[1674127692763,14.22626612,1518.8,1518.7,0.12920802]
[1674127693855,7.64212612,1518.8,1518.7,0.12920802]
[1674127695187,0.08398612,1518.8,1518.7,0.12920802]
[1674127695405,0.994,1518.8,1518.7,0.12920802]
[1674127696556,0.994,1518.8,1518.7,0.12654232]
[1674127699593,0.02,1518.8,1518.7,0.12654232]
[1674127699808,0.994,1518.8,1518.7,0.12654232]
[1674127700025,1.09380409,1518.8,1518.7,0.12654232]
[1674127702324,14.26208409,1518.8,1518.7,0.12654232]
[1674127702546,14.32607021,1518.8,1518.7,0.12654232]
[1674127703584,15.88107021,1518.8,1518.7,0.12654232]
[1674127703830,19.1728178,1518.8,1518.7,0.12654232]
[1674127704000,22.6667178,1518.8,1518.7,0.12654232]
[1674127705010,30.9769178,1518.8,1518.7,0.12654232]
[1674127705926,31.31400817,1518.8,1518.7,0.12654232]
[1674127706881,31.99816487,1518.8,1518.7,0.12654232]
[1674127707089,32.81113232,1518.8,1518.7,0.12654232]
[1674127707317,1.0,1518.7,1518.6,0.1045435]
[1674127707528,20.99895779,1518.7,1518.6,0.1045435]
[1674127707737,22.09630335,1518.7,1518.6,0.1045435]
[1674127708819,22.43668371,1518.7,1518.6,0.0005435]
[1674127709036,24.22368371,1518.7,1518.6,0.0005435]
[1674127709343,34.96770897,1518.7,1518.6,0.0005435]
[1674127709535,37.96770897,1518.7,1518.6,0.0005435]
[1674127709921,36.94147393,1518.7,1518.6,0.0005435]
[1674127710380,37.96770897,1518.7,1518.6,0.0005435]
[1674127710802,35.91086642,1518.7,1518.6,0.0005435]
[1674127711132,36.93851412,1518.7,1518.6,0.0005435]
[1674127711354,34.90732179,1518.7,1518.6,0.0005435]
[1674127712810,35.93905828,1518.7,1518.6,0.0005435]
[1674127714502,34.39105828,1518.7,1518.6,0.0005435]
[1674127714862,35.41729332,1518.7,1518.6,0.0005435]
[1674127715075,34.73376806,1518.7,1518.6,0.0005435]
[1674127715608,35.41839655,1518.7,1518.6,0.0005435]
[1674127716605,34.39216151,1518.7,1518.6,0.0005435]
[1674127717173,33.70753302,1518.7,1518.6,0.0005435]
[1674127717434,34.73376806,1518.7,1518.6,0.0005435]
[1674127718345,34.73159309,1518.7,1518.6,0.0005435]
[1674127718766,36.10054893,1518.7,1518.6,0.0005435]
[1674127718984,35.07431389,1518.7,1518.6,0.0005435]
[1674127720026,36.7824893,1518.7,1518.6,0.0005435]
[1674127720237,47.32155457,1518.7,1518.6,0.0005435]
[1674127720451,47.3204697,1518.7,1518.6,0.0005435]
[1674127720640,49.53432642,1518.7,1518.3,0.1373178]
[1674127720846,1.0,1518.3,1518.2,0.1373178]
[1674127721121,33.3084503,1518.3,1518.2,0.1373178]
[1674127721326,7.929,1518.2,1517.8,0.15404774]
[1674127721539,21.31983,1518.0,1517.8,0.15404774]
[1674127721749,24.90556371,1518.0,1517.8,0.15404774]
[1674127726524,24.90176736,1518.0,1517.8,0.15404774]
[1674127726735,33.38776736,1518.0,1517.8,0.15404774]
[1674127726988,33.88196736,1518.0,1517.8,0.15404774]
[1674127728217,33.88196736,1518.0,1517.8,0.11940255]
[1674127728425,24.29024759,1517.9,1517.8,0.11940255]
[1674127728631,38.53031371,1517.9,1517.8,0.11940255]
[1674127730428,19.76673,1517.7,1517.6,0.18304422]
[1674127730639,26.46446371,1517.7,1517.6,0.18304422]
[1674127731724,11.50164371,1517.7,1517.6,0.18304422]
[1674127733481,1.62098612,1517.7,1517.6,0.18304422]
[1674127733716,11.43765759,1517.7,1517.6,0.18304422]
[1674127733882,18.58485371,1517.7,1517.6,0.18304422]
[1674127735033,18.81485371,1517.7,1517.6,0.18304422]
[1674127736840,11.99594371,1517.7,1517.6,0.18304422]
[1674127736991,9.94464371,1517.7,1517.6,0.18304422]
[1674127738919,0.06398612,1517.7,1517.6,0.18304422]
[1674127739250,0.00404093,1517.8,1517.6,0.18304422]
[1674127739458,3.29578852,1517.8,1517.6,0.18304422]
[1674127740096,18.01400852,1517.8,1517.6,0.18304422]
[1674127740284,18.02600852,1517.8,1517.6,0.18304422]
[1674127740479,18.07799464,1517.8,1517.6,0.18304422]
[1674127743239,11.48925464,1517.8,1517.6,0.18304422]
[1674127744786,11.98345464,1517.8,1517.6,0.18304422]
[1674127744977,10.44245464,1517.8,1517.6,0.18304422]
[1674127745505,9.94825464,1517.8,1517.6,0.18304422]
[1674127746195,3.35573371,1517.8,1517.6,0.18304422]
[1674127746401,26.11061,1517.9,1517.7,1.545]
[1674127746402,19.09208612,1517.9,1517.7,1.545]
[1674127746551,0.06398612,1517.9,1517.7,6.76161442]
[1674127746761,25.68415612,1518.2,1517.8,1.555]
[1674127746995,22.38893371,1518.2,1517.8,14.73167]
[1674127747240,22.88303371,1518.2,1517.8,16.28431298]
[1674127747831,0.06398612,1518.2,1517.9,1.554]
[1674127748048,10.93787635,1518.4,1518.0,6.58761]
[1674127748393,17.29361006,1518.4,1518.0,6.65266426]
[1674127748550,0.4941,1518.3,1518.0,6.65266426]
[1674127749345,14.10373371,1518.4,1518.0,6.65266426]
[1674127750552,14.10373371,1518.4,1518.0,13.24027426]
[1674127751303,10.81198612,1518.4,1518.0,13.24027426]
[1674127751634,10.81198612,1518.4,1518.2,6.58674]
[1674127751635,0.55798612,1518.4,1518.2,6.58674]
[1674127751846,0.494,1518.5,1518.2,6.65179426]
[1674127752051,3.78574759,1518.5,1518.2,6.65179426]
[1674127752388,3.78574759,1518.5,1518.2,8.20879426]
[1674127752605,3.29174759,1518.5,1518.2,14.79553426]
[1674127752919,11.91196247,1518.6,1518.2,14.79553426]
[1674127753106,15.20371006,1518.6,1518.2,14.79553426]
[1674127753692,15.20371006,1518.6,1518.2,1.62205426]
[1674127753908,15.20371006,1518.6,1518.2,14.73048]
[1674127754175,15.20371006,1518.6,1518.2,14.79553426]
[1674127754386,21.78876006,1518.6,1518.2,0.06505426]
[1674127754707,1.50447465,1518.5,1518.1,8.20189426]
[1674127754938,4.79622224,1518.5,1518.1,6.65189426]
[1674127755135,3.97562394,1518.5,1518.1,6.65189426]
[1674127755274,3.97562394,1518.5,1518.1,6.64871672]
[1674127755630,3.97966487,1518.5,1518.1,6.64871672]
[1674127755818,11.6044565,1518.5,1518.1,6.64871672]
[1674127756024,3.29174759,1518.4,1518.1,0.06505426]
[1674127756257,6.58677,1518.2,1517.9,8.22105426]
[1674127756429,9.94250371,1518.2,1517.9,0.06505426]
[1674127756640,10.62638006,1518.2,1517.8,6.65347426]
[1674127757436,11.12048006,1518.2,1517.8,6.65347426]
[1674127757658,3.29174759,1518.1,1517.8,0.06505426]
[1674127757800,6.58761,1518.0,1517.7,0.06505426]
[1674127758130,3.29174759,1517.9,1517.6,0.24809848]
[1674127758324,3.29174759,1517.8,1517.6,0.18304422]
[1674127758534,9.88024759,1517.8,1517.6,0.18304422]
[1674127758745,9.94423371,1517.8,1517.6,0.18304422]
[1674127763059,3.35573371,1517.8,1517.6,0.18304422]
[1674127763268,3.29174759,1517.8,1517.6,0.18304422]
[1674127764054,0.002,1517.8,1517.6,0.18304422]
[1674127764277,0.00404093,1517.9,1517.6,13.36162422]
[1674127764421,0.00404093,1517.9,1517.6,14.97867848]
[1674127765312,0.00404093,1517.9,1517.6,17.13548733]
[1674127765471,10.40486247,1518.1,1517.6,17.13548733]
[1674127765682,13.69661006,1518.1,1517.6,17.13548733]
[1674127766680,13.01273371,1518.1,1517.7,1.557]
[1674127766894,13.01273371,1518.1,1517.8,6.58839]
[1674127767061,3.84983371,1518.1,1517.8,6.65344426]
[1674127767275,0.4941,1518.1,1517.8,13.24192426]
[1674127768625,0.4941,1518.1,1517.8,16.93767969]
[1674127768854,0.4941,1518.1,1517.9,1.557]
[1674127769101,53.73697699,1518.3,1517.9,8.14482]
[1674127769102,1.17797635,1518.2,1517.9,8.14482]
[1674127769261,4.46972394,1518.2,1517.9,8.20987426]
[1674127769475,3.78584759,1518.2,1517.9,10.56242423]
[1674127769678,4.46972394,1518.2,1517.9,10.56242423]
[1674127769914,4.46972394,1518.2,1517.9,8.20987426]
[1674127770264,3.30556563,1518.3,1517.9,14.79791426]
[1674127770454,1.17797635,1518.3,1518.1,1.557]
[1674127770815,1.17797635,1518.3,1518.1,8.14404]
[1674127771114,0.68791728,1518.4,1518.1,8.20909426]
[1674127771270,1.50623676,1518.4,1518.1,8.20909426]
[1674127771709,2.00033676,1518.4,1518.1,8.20909426]
[1674127772026,1.18201728,1518.4,1518.1,10.34746769]
[1674127772656,1.18201728,1518.4,1518.2,1.557]
[1674127772883,1.18201728,1518.4,1518.2,8.14365]
[1674127773051,1.18201728,1518.4,1518.2,8.20870426]
[1674127774423,0.68791728,1518.4,1518.2,8.20870426]
[1674127774672,1.50622637,1518.4,1518.2,8.20870426]
[1674127775243,0.00404093,1518.4,1518.2,8.20870426]
[1674127775715,1.50670087,1518.4,1518.2,0.06505426]
[1674127775926,1.50670087,1518.4,1518.1,6.65209426]
[1674127776097,2.53251539,1518.4,1518.1,0.06505426]
[1674127776314,1.50265994,1518.3,1518.0,0.06505426]
[1674127776526,1.75591148,1518.3,1517.9,6.65271426]
[1674127776741,0.93712789,1518.3,1517.9,6.65271426]
[1674127776955,3.781851,1518.3,1517.9,6.65271426]
[1674127777202,0.3781851,1518.2,1517.9,6.65271426]
[1674127777770,2.70969087,1518.3,1517.9,6.65271426]
[1674127778029,11.38136986,1518.2,1517.9,0.06505426]
[1674127778246,1.5027187,1518.1,1517.7,14.75371426]
[1674127778417,0.15027187,1518.0,1517.7,14.75371426]
[1674127778629,1.15027187,1518.0,1517.7,6.65391426]
[1674127779178,1.83414822,1518.0,1517.7,0.06505426]
[1674127779505,0.83414822,1518.0,1517.6,13.42617848]
[1674127779832,0.15027187,1518.0,1517.6,13.42617848]
[1674127782233,0.15027187,1518.0,1517.6,14.83824205]
[1674127784947,1.6531601,1518.0,1517.6,14.83824205]
[1674127785172,1.83414822,1518.0,1517.6,13.42617848]
[1674127785416,0.83414822,1518.0,1517.6,13.42617848]
[1674127785966,1.83414822,1518.0,1517.6,13.42617848]
[1674127786272,0.83414822,1518.0,1517.6,13.42617848]
[1674127786748,0.15027187,1518.0,1517.6,13.42617848]
[1674127786958,7.3392334,1518.1,1517.6,17.62147033]
[1674127787177,10.63098099,1518.1,1517.6,17.62147033]
[1674127789167,10.63098099,1518.1,1517.6,13.42617848]
[1674127789168,11.65679551,1518.1,1517.6,13.42617848]
[1674127789372,12.69458415,1518.1,1517.6,13.42617848]
[1674127790648,11.65679551,1518.1,1517.6,13.42617848]
[1674127790837,10.63098099,1518.1,1517.6,13.42617848]
[1674127791045,4.04365099,1518.1,1517.6,17.62147033]
[1674127791258,3.97966487,1518.1,1517.6,17.62147033]
[1674127792051,10.56688487,1518.1,1517.6,13.42617848]
[1674127792271,11.66865963,1518.1,1517.6,13.42617848]
[1674127792901,12.69447415,1518.1,1517.6,13.42617848]
[1674127793516,0.68387635,1518.0,1517.6,13.42617848]
[1674127794568,1.50290275,1518.0,1517.6,13.42617848]
[1674127795625,1.99710275,1518.0,1517.6,13.42617848]
[1674127795795,1.17807635,1518.0,1517.6,13.42617848]
[1674127796437,0.4942,1518.0,1517.6,13.42617848]
[1674127797419,0.4942,1518.0,1517.7,2.557]
[1674127797571,1.18201728,1518.1,1517.8,6.58839]
[1674127797781,1.18201728,1518.1,1517.8,6.65344426]
[1674127798889,2.2078318,1518.1,1517.8,6.65344426]
[1674127799203,3.02742462,1518.1,1517.8,6.65344426]
[1674127799359,2.2078318,1518.1,1517.8,6.65344426]
[1674127799821,1.18201728,1518.1,1517.8,13.24192426]
[1674127800035,1.18201728,1518.1,1517.8,16.93068569]
[1674127800407,0.68791728,1518.1,1517.8,16.93068569]
[1674127800725,1.50736415,1518.1,1517.8,16.9275964]
[1674127801376,1.50736415,1518.1,1517.9,8.28061964]
[1674127801587,1.50736415,1518.1,1517.9,6.65291426]
[1674127801830,1.50332322,1518.1,1517.9,14.78595426]
[1674127802238,0.68387635,1518.1,1517.9,14.78595426]
[1674127803680,0.68387635,1518.1,1517.9,8.19791426]
[1674127803928,1.07359313,1518.1,1517.9,6.65291426]
[1674127804297,0.68387635,1518.1,1517.9,6.65291426]
[1674127804719,0.68387635,1518.0,1517.9,0.06505426]
[1674127804976,1.70969087,1518.0,1517.8,0.06505426]
[1674127805188,2.52947365,1518.0,1517.7,6.65370426]
[1674127806417,1.70969087,1518.0,1517.7,6.65370426]
[1674127806746,0.68387635,1517.9,1517.7,0.06505426]
[1674127806928,0.68791728,1517.9,1517.6,9.77236422]
[1674127807300,1.50756668,1517.9,1517.6,9.83741848]
[1674127812188,1.50756668,1517.9,1517.6,6.83741848]
[1674127812819,2.5333812,1517.9,1517.6,6.83741848]
[1674127813523,2.52934027,1517.8,1517.6,0.24809848]
[1674127813658,2.52934027,1517.8,1517.6,0.18304422]
[1674127813869,0.25293403,1517.7,1517.6,0.18304422]
[1674127814622,0.93681038,1517.7,1517.6,0.18304422]
[1674127814847,1.75722392,1517.7,1517.6,0.18304422]
[1674127815972,2.09916209,1517.7,1517.6,0.18304422]
[1674127816181,2.78521855,1517.7,1517.6,0.18304422]
[1674127816415,2.09916209,1517.7,1517.6,0.18304422]
[1674127816813,5.39090968,1517.7,1517.6,0.18304422]
[1674127817143,25.88981605,1517.7,1517.6,0.18304422]
[1674127817358,27.42190469,1517.7,1517.6,0.18304422]
[1674127817606,22.28592981,1517.7,1517.6,0.18304422]
[1674127817795,19.69914117,1517.7,1517.6,0.18304422]
[1674127817967,28.39254117,1517.7,1517.6,0.18304422]
[1674127818808,29.42050088,1517.7,1517.6,0.18304422]
[1674127819019,17.94594433,1517.7,1517.6,0.18304422]
[1674127819770,9.25254433,1517.7,1517.6,0.18304422]
[1674127820741,12.54429192,1517.7,1517.6,0.18304422]
[1674127821066,19.13320192,1517.7,1517.6,0.18304422]
[1674127821882,13.58208056,1517.7,1517.6,0.18304422]
[1674127822123,5.61249727,1517.7,1517.6,0.18304422]
[1674127822434,6.64045698,1517.7,1517.6,0.18304422]
[1674127822654,5.61249727,1517.7,1517.6,0.18304422]
[1674127823121,5.61249727,1517.7,1517.6,0.17959644]
[1674127823498,19.13320192,1517.7,1517.6,0.17959644]
[1674127823799,19.36320192,1517.7,1517.6,0.17959644]
[1674127823959,20.40099056,1517.7,1517.6,0.17959644]
[1674127824417,19.36320192,1517.7,1517.6,0.17959644]
[1674127824646,20.40099056,1517.7,1517.6,0.17959644]
[1674127824959,20.04764762,1517.7,1517.6,0.17959644]
[1674127825117,20.40099056,1517.7,1517.6,0.17959644]
[1674127825528,20.04771081,1517.7,1517.6,0.17959644]
[1674127825776,20.40099056,1517.7,1517.6,0.17959644]
[1674127825985,20.04767744,1517.7,1517.6,0.17959644]
[1674127826201,21.08546608,1517.7,1517.6,0.17959644]
[1674127826579,20.05750637,1517.7,1517.6,0.17959644]
[1674127827291,21.08546608,1517.7,1517.6,0.17959644]
[1674127828299,20.05750637,1517.7,1517.6,0.17959644]
[1674127828510,21.08546608,1517.7,1517.6,0.17959644]
[1674127828725,20.05750637,1517.7,1517.6,0.17959644]
[1674127828927,2.32015014,1517.7,1517.6,0.17959644]
[1674127829148,1.18281645,1517.7,1517.6,0.17959644]
[1674127829361,0.00404093,1517.7,1517.6,0.17959644]
[1674127835275,0.97804093,1517.7,1517.6,0.17959644]
[1674127837676,1.66251645,1517.7,1517.6,0.17959644]
[1674127838357,1.78631408,1517.8,1517.6,0.17959644]
[1674127838565,11.05796164,1517.9,1517.7,1.545]
[1674127838734,0.74846164,1517.9,1517.7,1.545]
[1674127838945,0.68447552,1517.9,1517.7,1.545]
[1674127839369,1.50299144,1517.9,1517.7,1.545]
[1674127840152,0.68447552,1517.9,1517.7,1.545]
[1674127841142,0.68447552,1517.9,1517.6,14.98325015]
[1674127841787,1.50306451,1517.9,1517.6,14.98325015]
[1674127842011,0.68447552,1517.9,1517.6,14.98325015]
[1674127842667,1.50324847,1517.9,1517.6,14.98325015]
[1674127842853,0.68447552,1517.9,1517.6,17.91466417]
[1674127843412,1.71243523,1518.0,1517.7,1.557]
[1674127843593,1.50365349,1518.0,1517.8,6.58848]
[1674127843790,0.68447552,1518.0,1517.8,6.65353426]
[1674127844136,2.53162331,1518.0,1517.8,6.65353426]
[1674127846609,0.68447552,1518.0,1517.8,13.24201426]
[1674127846838,1.50371389,1518.0,1517.8,16.93778969]
[1674127847578,0.68447552,1518.0,1517.8,16.93778969]
[1674127848921,1.71243523,1518.1,1517.9,14.72844732]
[1674127849131,0.68447552,1518.1,1518.0,1.47284473]
[1674127849374,1.50348277,1518.1,1518.0,1.557]
[1674127849566,1.71243523,1518.2,1518.0,1.557]
[1674127849777,2.5314914,1518.2,1518.0,3.03681343]
[1674127849989,1.71243523,1518.2,1518.0,3.03681343]
[1674127850243,2.5315973,1518.2,1518.0,9.62442343]
[1674127850450,2.5315973,1518.2,1518.0,9.68947769]
[1674127851039,0.68647552,1518.2,1518.0,9.68747769]
[1674127851254,2.5313329,1518.2,1518.0,9.68947769]
[1674127852052,0.68447552,1518.2,1518.0,9.68947769]
[1674127852187,1.50338266,1518.2,1518.0,9.68947769]
[1674127852604,1.50338266,1518.2,1518.1,1.55]
[1674127852869,21.90842135,1518.3,1518.1,2.51894777]
[1674127853180,1.77642135,1518.3,1518.1,2.51894777]
[1674127853392,1.71243523,1518.3,1518.1,2.51894777]
[1674127853758,2.53108836,1518.3,1518.1,2.51894777]
[1674127853968,2.53108836,1518.3,1518.1,1.55]
[1674127854965,0.68447552,1518.3,1518.1,1.55]
[1674127855180,1.71243523,1518.3,1518.1,1.55]
[1674127855352,0.68447552,1518.2,1518.0,21.38388426]
[1674127857807,0.68447552,1518.3,1518.1,14.71936]
[1674127858028,0.68447552,1518.3,1518.2,8.13674]
[1674127858229,0.68447552,1518.3,1518.2,8.20179426]
[1674127858791,2.53059068,1518.4,1518.2,8.20179426]
[1674127859005,1.71243523,1518.4,1518.2,8.20179426]
[1674127859182,2.53043278,1518.4,1518.2,8.20179426]
[1674127860235,2.53043278,1518.4,1518.2,14.78853426]
[1674127860450,2.53043278,1518.4,1518.2,16.92610569]
[1674127861188,1.71243523,1518.4,1518.2,16.92610569]
[1674127861399,2.53057842,1518.4,1518.2,16.92610569]
[1674127861715,2.53057842,1518.4,1518.2,0.06505426]
[1674127861716,1.50261871,1518.3,1518.2,0.06505426]
[1674127861901,1.50261871,1518.3,1518.1,8.15444466]
[1674127862115,0.68447552,1518.3,1518.1,8.15444466]
[1674127865385,0.68447552,1518.4,1518.1,14.74162466]
[1674127865635,1.50270348,1518.4,1518.1,14.74162466]
[1674127865848,2.53066319,1518.4,1518.2,1.557]
[1674127866003,1.50270348,1518.3,1518.1,0.06505426]
[1674127866213,1.12427035,1518.2,1518.0,6.58759]
[1674127866477,1.12427035,1518.2,1518.0,6.65264426]
[1674127867103,0.15027035,1518.2,1518.0,6.65264426]
[1674127867325,1.71243523,1518.3,1518.0,6.65264426]
[1674127867470,2.53050978,1518.3,1518.0,6.65264426]
[1674127868172,1.02795971,1518.3,1518.0,6.65264426]
[1674127868369,1.83487639,1518.3,1518.0,13.24025426]
[1674127868543,0.80691668,1518.2,1518.0,13.24025426]
[1674127868748,1.02795971,1518.3,1518.0,13.24025426]
[1674127869112,1.37435238,1518.3,1518.0,13.24025426]
[1674127869440,0.81825915,1518.2,1518.0,13.24025426]
[1674127870050,2.74229227,1518.3,1518.0,13.24025426]
[1674127870209,0.81823647,1518.2,1518.0,13.24025426]